Cogmind - Beta 15 @@@ ROGUE MODE // 2025.08.04 @ 04:34:34 Player: Naughtyusername Result: Destroyed by H-77 Assassin with Coil Gun Performance ------------- Evolutions (6) 3000 Regions Visited (16) 3200 Robots Destroyed (300) 1500 Value Destroyed (12803) 12803 Prototype IDs (33) 660 Alien Tech Used (0) 0 Bonus (7001) 7001 TOTAL SCORE: 28164 Bonus ------- High Alert Combat Kills 1456 Follower Combat Kills 2113 Network Hubs Disabled 400 Met Warlord at Base 500 MAIN.C Attacked Warlord 500 Warlord Defense Kills 1456 Built Enhanced Grunts 300 Met R17 at Cetus 500 Friendly Fire -224 Cogmind --------- Core Integrity 0/1150 Matter 300/300 Energy 99/100 System Corruption 5% Temperature Cool (0) Movement Core (50) Location -3/Proximity Caves Parts ------- > --- POWER (2) -------- (None) > --- PROPULSION (4) --- (None) > --- UTILITY (9) ------ (None) > --- WEAPON (4) ------- (None) > --- INVENTORY (5) ---- Neutrino Core Flexi-carbon Leg Myomer Leg Quantum Capacitor Peak State ------------ > --- POWER ------------ Reinforced Fission Core Micro Antimatter Reactor > --- PROPULSION ------- Flexi-carbon Leg Flexi-carbon Leg Advanced VSS Leg Advanced VSS Leg > --- UTILITY ---------- Advanced Cryofiber Web Advanced Cooling System Huge Storage Unit Advanced Salvage Targeting Computer Advanced Targeting Computer Improved Target Analyzer Improved Weapon Cycler Makeshift Weapon Shielding Gun Armor > --- WEAPON ----------- Vortex Driver Mass Driver Vortex Catalyst Activator > --- INVENTORY -------- Neutrino Core Neutrino Core Improved Treads Armored Medium Treads Enhanced Armored Medium Treads Improved Heavy Treads Myomer Leg Advanced Heat Sink Matter Compressor Kinecellerator Quantum Capacitor Heavy Armor Plating Graphene Brace High-powered Tractor Beam Vortex Rifle Vortex Rifle Vortex Rifle Advanced Plasma Cannon Advanced Plasma Cannon Vortex Driver Hypervelocity Mass Driver Hypervelocity Mass Driver [Rating: 133] Favorites ----------- Power Neutrino Core Engine Heavy Ion Engine Power Core Neutrino Core Reactor Quantum Reactor Propulsion Armored Treads Treads Armored Treads Leg Flexi-carbon Leg Wheel Armored Huge Wheel Hover Unit Antigrav System Utility Advanced Targeting Computer Device Seismic Detector Storage Huge Storage Unit Processor Advanced Targeting Computer Hackware Hacking Suite Protection Gun Armor Weapon Gauss Rifle Energy Gun Subdweller Laser Energy Cannon Heavy Phase Cannon Ballistic Gun Gauss Rifle Ballistic Cannon Mass Driver Launcher Micro-nuke Launcher Special Weapon Remote Datajack Impact Weapon Makeshift Hammer Slashing Weapon Makeshift Sword Piercing Weapon Lance Build | -11 -10 -10 -8 -8 -8 -6 -6 -6 -6 -6 -5 -4 -4 -4 -4 -3 ------- Run | Yrd Mat Sub Mat Sto Rec Fac Ext Cet Arc Hub Fac Fac Upp Upp War Pro Slots Evolved 12 | . . . 4 . . 4 . . . . 2 2 . . . . Power 1 | . . . . . . 1 . . . . . . . . . . Propulsion 2 | . . . 1 . . 1 . . . . . . . . . . Utility 7 | . . . 3 . . 1 . . . . 1 2 . . . . Weapon 2 | . . . . . . 1 . . . . 1 . . . . . Parts Attached 208 | 4 1 12 28 2 6 21 12 7 . 6 39 44 3 . 23 . Power 32 | 1 . 1 3 1 1 5 2 1 . . 8 8 . . 1 . Engine 11 | 1 . 1 2 1 1 3 2 . . . . . . . . . Core 16 | . . . 1 . . 2 . . . . 8 5 . . . . Reactor 5 | . . . . . . . . 1 . . . 3 . . 1 . Propulsion 45 | 2 . 3 7 1 1 5 . 2 . . 9 9 1 . 5 . Treads 23 | 2 . . 3 1 1 3 . 2 . . 4 4 . . 3 . Leg 12 | . . . . . . . . . . . 4 5 1 . 2 . Wheel 9 | . . 3 4 . . 2 . . . . . . . . . . Hover 1 | . . . . . . . . . . . 1 . . . . . Flight . | . . . . . . . . . . . . . . . . . Utility 62 | 1 1 1 11 . . 5 7 2 . 4 11 15 . . 4 . Device 15 | 1 . . 1 . . . . 1 . . 6 4 . . 2 . Storage 6 | . 1 1 2 . . . 1 . . . . 1 . . . . Processor 12 | . . . 4 . . . 1 . . 1 2 4 . . . . Hackware 7 | . . . . . . 3 . . . 2 1 1 . . . . Protection 22 | . . . 4 . . 2 5 1 . 1 2 5 . . 2 . Artifact . | . . . . . . . . . . . . . . . . . Weapon 69 | . . 7 7 . 4 6 3 2 . 2 11 12 2 . 13 . Energy Gun 8 | . . 3 . . . . . . . . . 1 1 . 3 . Energy Cannon 9 | . . . . . 1 . 1 . . . 2 1 . . 4 . Ballistic Gun 34 | . . 2 6 . 2 5 . 2 . 2 8 7 . . . . Ballistic Cannon 9 | . . . . . . 1 1 . . . 1 2 . . 4 . Launcher 3 | . . . . . 1 . . . . . . . 1 . 1 . Special Weapon 3 | . . . 1 . . . 1 . . . . . . . 1 . Impact Weapon 1 | . . 1 . . . . . . . . . . . . . . Slashing Weapon 1 | . . 1 . . . . . . . . . . . . . . Piercing Weapon 1 | . . . . . . . . . . . . 1 . . . . Special Melee Weapon . | . . . . . . . . . . . . . . . . . Unidentified Prototypes 15 | . . . . 1 4 . . 3 . . 2 . . . 5 . Parts Lost 99 | . . 7 2 . 1 4 1 . . 7 23 32 3 1 18 . Power 14 | . . 1 . . . . 1 . . 2 3 5 . . 2 . Propulsion 23 | . . 2 1 . . 2 . . . 1 5 8 1 . 3 . Utility 18 | . . . 1 . . . . . . 1 4 7 . . 5 . Weapon 44 | . . 4 . . 1 2 . . . 3 11 12 2 1 8 . Highest Loss Streak 12 | . . 4 1 . 1 2 1 . . 4 12 7 1 1 11 . To Critical Strikes 1 | . . . . . . 1 . . . . . . . . . . Average Backups 20 | 2 5 14 22 23 23 23 23 24 23 22 20 20 20 20 21 4 Power 1 | 1 1 2 1 2 1 . 1 1 1 . 1 1 1 1 1 1 Propulsion 2 | 1 1 4 4 1 2 1 1 1 1 1 . 1 5 5 4 2 Utility 9 | . 1 3 6 7 8 11 11 12 12 13 14 12 9 10 10 1 Weapon 6 | . . 3 8 10 9 9 9 9 7 6 4 4 5 4 4 . Tool/Special . | . . . . . . . . . . . . . . . . . Unused Backups 54 | 2 2 . 20 3 1 6 4 . 1 . 1 6 . . 6 2 Power 5 | . . . 3 1 . . . . . . . . . . 1 . Propulsion 17 | 2 . . 9 1 1 1 . . . . . 2 . . . 1 Utility 20 | . 2 . 3 . . 2 2 . . . 1 4 . . 5 1 Weapon 12 | . . . 5 1 . 3 2 . 1 . . . . . . . Tool/Special . | . . . . . . . . . . . . . . . . . Average Slot Usage (%) 94 | . 100 99 91 100 100 96 84 86 86 84 92 95 99 99 97 . Engine 5 | . 14 14 5 1 7 7 9 11 6 4 . . . . . . Core 4 | . . . 1 5 . 4 1 . . . 9 6 10 10 9 . Treads 11 | . 28 6 . 23 24 18 . 7 13 12 9 11 . . . . Leg 5 | . . . . . . . . . . . 7 7 20 21 20 . Wheel 3 | . . 20 15 . . 3 13 5 . . . . . . . . Device 7 | . 14 13 3 . . . . 5 6 . 5 11 16 20 20 . Storage 7 | . 14 14 8 7 7 6 6 6 6 6 4 5 5 5 4 . Processor 11 | . . . 10 15 15 6 8 13 13 15 13 14 15 15 14 . Hackware 2 | . . . . . . 15 3 . . 7 4 1 . . . . Protection 9 | . . . 14 15 15 8 19 13 13 9 8 12 9 5 5 . Energy Gun 1 | . . 12 . . . . . . . . . . 7 5 . . Ballistic Gun 18 | . 28 14 26 30 24 20 19 19 20 19 19 13 6 5 . . Ballistic Cannon 1 | . . . . . . . . . . . . . 1 . 13 . Peak Build Rating 133 | 7 8 16 56 52 52 72 79 111 111 112 100 115 116 115 133 3 Average Rating 72 | 6 7 10 48 51 49 64 76 95 110 106 87 100 113 114 113 3 On Entrance 62 | 6 7 8 16 52 52 50 71 78 111 111 75 90 114 114 109 3 Naked Turns 89 | . . . . . . . . . . . . . . . 14 75 Heaviest Build 173 | 15 90 92 127 116 116 124 145 143 141 141 148 153 157 155 173 . Greatest Support 160 | 40 40 40 62 62 62 82 56 160 160 160 100 100 78 76 137 3 Greatest Overweight (x) 18 | . 2 4 4 1 1 4 2 2 . 1 18 5 2 2 3 . Average Overweight (x) 1 | . 1 3 2 1 1 1 2 . . . 1 1 1 1 1 . Largest Inventory Capacity 25 | 8 25 25 25 25 25 25 25 25 25 25 25 25 25 25 25 5 Average Capacity 24 | 8 22 25 25 25 25 25 25 25 25 25 24 25 25 25 24 5 Most Carried 25 | 8 9 22 25 25 25 25 25 25 25 25 25 25 25 24 25 5 Average Carried 21 | 1 5 14 24 24 24 24 24 25 24 23 21 22 23 23 24 5 Final Capacity 25 | 8 25 25 25 25 25 25 25 25 25 25 25 25 25 25 5 5 Final Carried 25 | 1 9 22 24 25 25 25 25 25 25 18 22 25 22 24 5 5 Class Distribution -------------------- 29% | Scavenger-Gunner 20% | Commander-Gunner 15% | Mutant 11% | Gunner 6% | Scavenger-Skirmisher 6% | Hacker-Gunner 4% | Scavenger-Tank Dominant Class ---------------- Mutant | -10/Materials Mutant | -10/Subcaves Gunner | -8/Materials Gunner | -8/Storage Commander-Gunner | -8/Recycling Hacker-Gunner | -6/Factory Commander-Gunner | -6/Extension Commander-Gunner | -6/Cetus Commander-Gunner | -6/Archives Scavenger-Gunner | -6/Hub_04(d) Scavenger-Gunner | -5/Factory Scavenger-Gunner | -4/Factory Scavenger-Gunner | -4/Upper Caves Scavenger-Gunner | -4/Upper Caves Scavenger-Gunner | -4/Warlord Mutant | -3/Proximity Caves Resources | -11 -10 -10 -8 -8 -8 -6 -6 -6 -6 -6 -5 -4 -4 -4 -4 -3 ----------- Run | Yrd Mat Sub Mat Sto Rec Fac Ext Cet Arc Hub Fac Fac Upp Upp War Pro Matter Collected 11645 | 270 227 297 1153 667 596 1059 1191 218 312 332 2298 2057 296 271 401 . Remotely 1620 | . . . . . . . . . . . 104 904 276 211 125 . Salvage Created 14561 | 104 284 321 1515 1406 522 936 1087 274 453 959 2116 3765 356 109 354 . Parts 797 | 5 19 20 93 84 31 41 57 9 36 40 113 213 20 5 11 . Haulers Intercepted 7 | . . . 1 4 . 1 . . . . . 1 . . . . Recyclers Shooed 9 | . . . . . . 1 1 . . . 2 5 . . . . Parts Field Recycled . | . . . . . . . . . . . . . . . . . Retrieved Matter . | . . . . . . . . . . . . . . . . . Parts Self-Destructed 33 | . . 3 . . . . . . . . . . 18 12 . . Prevented 4 | . . . . . . . . . . . . . . 4 . . Kills | -11 -10 -10 -8 -8 -8 -6 -6 -6 -6 -6 -5 -4 -4 -4 -4 -3 ------- Run | Yrd Mat Sub Mat Sto Rec Fac Ext Cet Arc Hub Fac Fac Upp Upp War Pro Combat Hostiles Destroyed 227 | . 8 7 27 19 12 20 16 4 1 11 36 37 14 5 10 . Guns 169 | . 8 7 27 19 12 14 12 4 1 11 29 19 4 1 1 . Cannons 33 | . . . . . . . . . . . 7 18 . . 8 . AOE 25 | . . . . . . 6 4 . . . . . 10 4 1 . Classes Destroyed 24 | 2 4 1 8 1 1 . 1 . . 1 . 2 1 . 2 . Worker 14 | . 1 . 2 2 . 2 . . . . 3 4 . . . . Builder 11 | . . . 1 1 . . . . . . 2 7 . . . . Tunneler 3 | 1 . . . . . 1 . . . . 1 . . . . . Hauler 7 | . . . 1 4 . 1 . . . . . 1 . . . . Recycler 12 | 1 . . 1 3 . . 1 . . . 1 5 . . . . Carrier 1 | . . . . . . . . . . . . 1 . . . . Mechanic 3 | . . . 1 . . . . . . . 2 . . . . . Operator 13 | . . . 2 . . . 1 . 9 . . 1 . . . . Watcher 4 | . 1 . . . . . 1 . . . 2 . . . . . Swarmer 49 | . 3 . 4 . . 3 4 . . . 12 6 12 5 . . Saboteur 1 | . . . . . . . . . . . . . . . 1 . Grunt 82 | . 5 . 15 13 2 10 4 . . 8 8 12 2 . 3 . Brawler 2 | . . . . 1 . . . . . . . 1 . . . . Duelist 2 | . . . 1 . . . . . . . . 1 . . . . Protector 1 | . . . . . . . . . . 1 . . . . . . Sentry 30 | . . . 5 5 1 3 5 . 1 1 4 5 . . . . Specialist 1 | . . . . . . . . . . . . 1 . . . . Hunter 12 | . . . 1 . . 1 . . . . 2 8 . . . . Programmer 24 | . . . . . 5 3 1 . . . 10 2 . . 3 . Heavy 2 | . . . 1 . . . . . . . . 1 . . . . Behemoth 3 | . . . . . . . 1 . . . . . . . 2 . Cetus Guard 4 | . . . . . . . . 4 . . . . . . . . Enhanced Grunt 3 | . . . . . . . . . 1 2 . . . . . . Lightning 1 | . . . . . . . . . . 1 . . . . . . Striker 1 | . . . . . . . . . . . . . . . 1 . Subdweller 11 | . . 7 . . 4 . . . . . . . . . . . Packrat 1 | . . . . . . . . . . . . . . 1 . . Samaritan 1 | . . . . . . . . . . . . . 1 . . . Thug 1 | . . . . . . . 1 . . . . . . . . . Butcher 1 | . . . . . . . 1 . . . . . . . . . Guerrilla 1 | . . . . . . . . . . 1 . . . . . . Best Kill Streak 18 | 2 4 2 8 5 6 7 6 2 3 5 6 18 6 5 6 . Combat Bots Only 9 | . 3 2 7 5 6 6 6 2 1 5 4 9 6 5 6 . Max Kills in Single Turn 4 | 1 1 1 2 2 1 2 4 1 2 2 2 2 4 2 2 . Gunslinging 1 | . . . . 1 . . . . . 1 . . 1 . . . Exploded 4 | . . . . . . 2 4 . . . . . 4 2 1 . Melee . | . . . . . . . . . . . . . . . . . Uniques/NPCs Destroyed . | . . . . . . . . . . . . . . . . . Combat | -11 -10 -10 -8 -8 -8 -6 -6 -6 -6 -6 -5 -4 -4 -4 -4 -3 -------- Run | Yrd Mat Sub Mat Sto Rec Fac Ext Cet Arc Hub Fac Fac Upp Upp War Pro Hostile Shots Fired 1728 | . 33 44 98 41 23 147 163 16 3 129 244 496 40 6 230 15 Missed 471 | . 7 7 27 13 3 49 52 9 1 24 56 137 10 1 72 3 Hits 1257 | . 26 37 71 28 20 98 111 7 2 105 188 359 30 5 158 12 Melee 19 | . . . 1 1 . . . . . . 3 4 . . 10 . Projectile 1238 | . 26 37 70 27 20 98 111 7 2 105 185 355 30 5 148 12 Critical Strikes 52 | . . . . 1 1 6 3 . . 15 3 15 2 . 6 . Actively Blocked 6 | . . . . . . . . . . . . . . . 6 . Part Disruptions 3 | . . . . . 1 . . . . . 1 . . . 1 . Damage Taken 23647 | . 280 785 1073 452 341 1326 1104 94 86 2775 3491 6391 554 148 4518 229 Core 2062 | . 42 176 68 28 . 170 83 14 20 87 209 334 16 . 586 229 Absorbed by Shields 160 | . . . . . . . 71 89 . . . . . . . . Redirected to Shielding 280 | . . . 106 . . . . . . . . . . . 174 . Ignored by Resistances 124 | . . . 124 . . . . . . . . . . . . . Regen/Repaired (Parts) 456 | . . . 95 . . . . . . . 118 142 . . 101 . Core Remaining (%) 65 | 100 . 12 . . 82 . . . . 56 79 . . . . . Volleys Fired 678 | 5 46 29 53 38 22 58 60 11 29 31 133 128 10 6 19 . Largest 4 | 2 2 2 4 4 4 4 3 3 3 3 4 4 3 3 4 . Hottest 308 | 40 40 120 112 112 112 124 90 95 100 100 179 193 140 197 308 . Shots Fired 1992 | 10 92 56 197 152 71 154 152 29 78 86 409 420 24 9 53 . Gun 1723 | 10 92 56 197 152 71 136 138 27 78 86 357 295 19 3 6 . Cannon 246 | . . . . . . 11 11 2 . . 52 125 1 1 43 . Launcher 21 | . . . . . . 7 1 . . . . . 4 5 4 . Special 2 | . . . . . . . 2 . . . . . . . . . Kinetic 1763 | 10 92 35 197 152 71 147 144 27 78 86 371 316 13 2 22 . Thermal 184 | . . 21 . . . . 7 2 . . 38 103 6 1 6 . Explosive 17 | . . . . . . 7 1 . . . . . 4 5 . . Electromagnetic 3 | . . . . . . . . . . . . 1 1 1 . . Entropic 25 | . . . . . . . . . . . . . . . 25 . Robot Hit Streak 36 | 5 21 32 14 25 16 32 36 11 15 17 23 35 16 2 10 . Robot Miss Streak 7 | 1 4 1 4 3 2 2 4 1 3 6 7 6 2 3 2 . Penetration Max 2 | . . . 1 1 1 1 2 1 1 1 1 1 . . 1 . Secondary Targets 22 | . . . 3 3 1 1 2 2 . 3 6 . 1 . . . Max Gunslinging Chain 1 | . . . 1 1 1 1 1 1 . 1 1 . 1 . . . Shots Hit Robots 1314 | 8 62 53 120 106 41 118 93 25 49 56 268 262 19 2 32 . Core Hits 610 | 3 18 14 57 47 19 62 56 13 27 37 97 121 19 7 13 . Critical Kills 36 | . . . 2 2 . 1 4 2 4 3 4 12 . . 2 . Critical Parts Destroyed 53 | . 1 . 2 2 2 . 1 . 9 5 15 13 2 . 1 . Critical Strikes 107 | . 1 . 4 4 2 2 6 4 13 8 20 31 4 . 8 . Burn 3 | . . . . . . . . . . . . 1 2 . . . Destroy 96 | . 1 . 4 4 2 2 6 4 13 8 20 26 2 . 4 . Blast 4 | . . . . . . . . . . . . 4 . . . . Sunder 4 | . . . . . . . . . . . . . . . 4 . Melee Attacks 24 | . . 3 . . 1 4 6 . . . . 9 1 . . . Impact 12 | . . 1 . . 1 4 6 . . . . . . . . . Slashing 2 | . . 2 . . . . . . . . . . . . . . Piercing 10 | . . . . . . . . . . . . 9 1 . . . Sneak Attacks . | . . . . . . . . . . . . . . . . . Combat Hostiles . | . . . . . . . . . . . . . . . . . Follow-up Attacks . | . . . . . . . . . . . . . . . . . Damage Inflicted 35945 | 97 825 698 2538 2237 1004 3833 2940 701 1606 1936 5641 6843 1610 571 2865 . Guns 24669 | 97 825 698 2506 2199 1004 2129 2546 701 1606 1552 4077 4173 388 25 143 . Cannons 5433 | . . . . . . 75 37 . . . 1102 2498 30 . 1691 . Explosions 5575 | . . . . . . 1611 357 . . 282 391 165 1192 546 1031 . Melee . | . . . . . . . . . . . . . . . . . Ramming 268 | . . . 32 38 . 18 . . . 102 71 7 . . . . Kinetic 24894 | 97 825 311 2506 2199 1004 2204 2583 701 1606 1552 4307 4430 278 . 291 . Thermal 4228 | . . 387 . . . . . . . . 1263 2241 110 25 202 . Explosive 3706 | . . . . . . 1611 357 . . . . . 1192 546 . . Electromagnetic 477 | . . . . . . . . . . 282 . 165 30 . . . Impact . | . . . . . . . . . . . . . . . . . Slashing . | . . . . . . . . . . . . . . . . . Piercing . | . . . . . . . . . . . . . . . . . Entropic 2372 | . . . . . . . . . . . . . . . 2372 . Highest Corruption 22 | . . . . . 2 . . . . 22 16 9 9 9 9 5 Average Corruption 5 | . . . . . 1 . . . . 6 8 6 9 9 4 5 Corruption Purged . | . . . . . . . . . . . . . . . . . Corruption Blocked . | . . . . . . . . . . . . . . . . . Effects 203 | . . . . . 22 . . . . 9 78 38 20 27 7 2 Message Errors 43 | . . . . . 7 . . . . 2 17 9 3 5 . . Matter Fused 58 | . . . . . 3 . . . . 1 21 11 9 11 2 . Heat Flow Errors 26 | . . . . . 6 . . . . 1 9 4 1 4 . 1 Energy Discharges 21 | . . . . . 2 . . . . 2 11 2 1 1 2 . Parts Rejected 4 | . . . . . . . . . . . 3 1 . . . . Parts Fused 2 | . . . . . . . . . . . . . . 1 1 . Data Loss (minor) 19 | . . . . . 2 . . . . 2 4 4 4 2 . 1 Data Loss (major) 8 | . . . . . 1 . . . . . 3 2 . 1 1 . Misfires 10 | . . . . . 1 . . . . . 6 . 2 1 . . Alerts 3 | . . . . . . . . . . . . 2 . 1 . . Misdirections 1 | . . . . . . . . . . . 1 . . . . . Weapon Failures 8 | . . . . . . . . . . 1 3 3 . . 1 . Overload Shots . | . . . . . . . . . . . . . . . . . Overflow Damage 621 | . . . . 2 . 75 . . . . 72 31 100 168 173 . Projectiles 226 | . . . . . . . . . . . 39 14 . . 173 . Explosions 393 | . . . . . . 75 . . . . 33 17 100 168 . . Melee 2 | . . . . 2 . . . . . . . . . . . . Knockbacks 13 | . . . 1 . . 1 . . . 1 5 5 . . . . Impact 5 | . . . 1 . . 1 . . . 1 2 . . . . . Kinetic 8 | . . . . . . . . . . . 3 5 . . . . Secondary . | . . . . . . . . . . . . . . . . . Self-Inflicted Damage 550 | . . . 16 . . 85 14 . . 96 . 42 97 70 130 . Shots 10 | . . . . . . 3 1 . . 1 . 1 2 1 1 . Rammed 17 | . . . 1 4 . . . . . 5 5 2 . . . . Targets Rammed 23 | . . . 1 5 . 1 . . . 5 9 2 . . . . Kicked 1 | . . . . . . . . . . . 1 . . . . . Crushed 5 | . . . . 1 . 1 . . . . 3 . . . . . Highest Temperature 387 | . 2 12 316 338 280 114 319 146 275 270 384 387 . 35 357 194 Average Temperature 97 | . 2 8 101 127 79 36 86 65 96 74 118 113 . 33 154 108 Received Heat Transfer 4184 | . 111 96 324 252 60 400 663 . . 431 327 1178 21 . 321 . Effects 17 | . . . . 2 1 . 1 . 1 3 5 1 . . 3 . Shutdowns 3 | . . . . 1 . . . . . . 2 . . . . . Energy Bleed 4 | . . . . 1 . . 1 . . . 1 1 . . . . Interference 10 | . . . . . 1 . . . 1 3 2 . . . 3 . Siege Activations . | . . . . . . . . . . . . . . . . . Martial Activations . | . . . . . . . . . . . . . . . . . Shielding Activations . | . . . . . . . . . . . . . . . . . Robots Disrupted . | . . . . . . . . . . . . . . . . . Combat Hostiles . | . . . . . . . . . . . . . . . . . Robots Corrupted 3 | . . . . 1 . . . . . 2 . . . . . . Combat Hostiles . | . . . . . . . . . . . . . . . . . Parts Fried 4 | . . . . 2 . . . . . 1 . 1 . . . . Impact Corruptions 1 | . . . . 1 . . . . . . . . . . . . Robots Melted . | . . . . . . . . . . . . . . . . . Combat Hostiles . | . . . . . . . . . . . . . . . . . Parts Melted 6 | . . . . . 1 . . . . . 1 4 . . . . Heat Transferred 5183 | . . 475 . . . . . . . . 1175 2746 450 37 300 . Parts Sabotaged 2 | . . . . . . . . . . . . . . . 2 . Parts Stolen . | . . . . . . . . . . . . . . . . . Parts Stripped . | . . . . . . . . . . . . . . . . . Power Chain Reactions 2 | . . . . . . . . . . . . 2 . . . . Alert | -11 -10 -10 -8 -8 -8 -6 -6 -6 -6 -6 -5 -4 -4 -4 -4 -3 ------- Run | Yrd Mat Sub Mat Sto Rec Fac Ext Cet Arc Hub Fac Fac Upp Upp War Pro Maximum Alert Level 3 | . . . 2 2 1 2 3 2 2 3 3 3 . . . . Low Security (%) 43 | 100 100 . 57 2 95 56 . . . 19 49 . . . . . Level 1 25 | . . . 11 64 4 37 27 . 97 19 28 35 . . . . Level 2 23 | . . . 30 33 . 5 44 100 2 57 12 40 . . . . Level 3 7 | . . . . . . . 27 . . 3 9 23 . . . . Level 4 . | . . . . . . . . . . . . . . . . . Level 5 . | . . . . . . . . . . . . . . . . . High Security . | . . . . . . . . . . . . . . . . . Max Security . | . . . . . . . . . . . . . . . . . Peak Influence 1081 | 5 112 . 518 465 246 509 1081 686 408 716 880 1009 . . . . Initial 518 | . . . . 213 155 250 245 518 236 95 350 429 . . . . Average 298 | 1 22 . 216 329 40 179 562 594 349 459 306 567 . . . . Influence Increases 10517 | 10 313 60 844 602 344 1043 1793 414 338 1081 1467 1459 325 110 314 . Destroy 0b10 Robot/C 5320 | . 160 . 540 380 180 420 940 180 80 320 720 760 280 100 260 . Destroy 0b10 Robot/NC 370 | 10 10 . 40 50 . 20 30 10 45 10 55 90 . . . . Destroy Leader 934 | . 32 . 132 88 . 122 104 10 . 70 164 172 30 10 . . Allied During Kill 1197 | . . . . . 5 . 638 200 125 205 . . . . 24 . Successful Hack 273 | . 36 . 37 32 6 32 24 11 . 33 57 5 . . . . Select Force Hacks 180 | . . . . 30 150 . . . . . . . . . . . Disable Machine 675 | . . . 30 15 . 75 15 . 60 150 180 150 . . . . Destroy Structure 658 | . . . 5 7 3 64 42 3 28 188 126 192 . . . . Advance Influence 250 | . . . . . . 250 . . . . . . . . . . Partial Spotted 15 | . . . . . . . . . . . 15 . . . . . Lose Combat Pursuer 645 | . 75 60 60 . . 60 . . . 105 150 90 15 . 30 . Influence Decreases 10517 | 10 313 60 338 709 743 543 1367 750 656 637 1307 1693 578 394 392 27 Entered New Map 2988 | . . . . 293 244 . 255 408 354 177 366 447 238 74 105 27 Time Decay 5446 | 10 313 38 318 416 453 479 562 342 262 230 711 626 310 310 66 . Lost Part 916 | . . 22 20 . 10 21 10 . . 70 230 320 30 10 173 . Lost Ally 567 | . . . . . 36 43 240 . 40 160 . . . . 48 . Purge Threat 600 | . . . . . . . 300 . . . . 300 . . . . Squads Dispatched 53 | . . . 5 3 . 7 7 1 . 4 14 12 . . . . Investigation 9 | . . . . 1 . . 4 1 . . 3 . . . . . Extermination 12 | . . . . . . 3 . . . . 6 3 . . . . Reinforcement 20 | . . . 4 2 . 2 3 . . 3 1 5 . . . . Assault 3 | . . . . . . . . . . 1 1 1 . . . . Garrison 9 | . . . 1 . . 2 . . . . 3 3 . . . . Intercept . | . . . . . . . . . . . . . . . . . Searches Triggered . | . . . . . . . . . . . . . . . . . Construction Impeded 5 | . . . 1 . . 1 2 . . . 1 . . . . . Haulers Reinforced 1 | . . . . . . . . . . 1 . . . . . . Active Scanning Responses . | . . . . . . . . . . . . . . . . . Cargo Convoy Interrupts 1 | . . . . . . . . . . . . 1 . . . . Stealth | -11 -10 -10 -8 -8 -8 -6 -6 -6 -6 -6 -5 -4 -4 -4 -4 -3 --------- Run | Yrd Mat Sub Mat Sto Rec Fac Ext Cet Arc Hub Fac Fac Upp Upp War Pro Distress Signals 25 | . 4 . 4 2 1 . 1 2 . 4 4 2 . . . 1 Communications Jammed . | . . . . . . . . . . . . . . . . . Distress Signals . | . . . . . . . . . . . . . . . . . Times Spotted 392 | . 20 10 38 28 13 28 33 9 15 38 55 58 15 4 24 4 Peak Tracking Total 14 | . 4 3 7 6 6 6 6 5 1 14 6 8 5 4 13 6 Tactical Retreats 28 | . 4 2 3 . . 1 . . . 3 9 4 1 . 1 . Traps | -11 -10 -10 -8 -8 -8 -6 -6 -6 -6 -6 -5 -4 -4 -4 -4 -3 ------- Run | Yrd Mat Sub Mat Sto Rec Fac Ext Cet Arc Hub Fac Fac Upp Upp War Pro Traps Triggered 8 | . . . 1 . . . 4 . . 1 1 1 . . . . Indirectly . | . . . . . . . . . . . . . . . . . Trap Hack Attempts . | . . . . . . . . . . . . . . . . . Triggered . | . . . . . . . . . . . . . . . . . Disarmed . | . . . . . . . . . . . . . . . . . Reprogrammed . | . . . . . . . . . . . . . . . . . Reused . | . . . . . . . . . . . . . . . . . Traps Extracted . | . . . . . . . . . . . . . . . . . Installed . | . . . . . . . . . . . . . . . . . Triggered . | . . . . . . . . . . . . . . . . . Machines | -11 -10 -10 -8 -8 -8 -6 -6 -6 -6 -6 -5 -4 -4 -4 -4 -3 ---------- Run | Yrd Mat Sub Mat Sto Rec Fac Ext Cet Arc Hub Fac Fac Upp Upp War Pro Machines Disabled 47 | . . 1 2 1 . 5 2 . 4 10 12 10 . . . . Max in Single Turn 9 | . . 1 1 1 . 4 . . . 6 9 3 . . . . Garrison Access 4 | . . . 1 1 . 1 . . . . 1 . . . . . Network Hub 2 | . . . . . . . . . . 2 . . . . . . Machines Repaired . | . . . . . . . . . . . . . . . . . Machines Dismantled . | . . . . . . . . . . . . . . . . . Machines Sabotaged . | . . . . . . . . . . . . . . . . . Overloaded Fab Kills . | . . . . . . . . . . . . . . . . . Hacking | -11 -10 -10 -8 -8 -8 -6 -6 -6 -6 -6 -5 -4 -4 -4 -4 -3 --------- Run | Yrd Mat Sub Mat Sto Rec Fac Ext Cet Arc Hub Fac Fac Upp Upp War Pro Machines Accessed 85 | . 8 1 8 8 12 8 13 3 1 5 8 7 . . 3 . Terminals 59 | . 8 . 6 6 5 6 13 3 . 5 2 5 . . . . Fabricators 3 | . . . . . . 1 . . . . 2 . . . . . Repair Stations 3 | . . . 1 . . . . . . . 1 1 . . . . Recycling Units 6 | . . . . 1 5 . . . . . . . . . . . Scanalyzers 2 | . . . . . . . . . . . 2 . . . . . Garrison Access 5 | . . . 1 1 . 1 . . . . 1 1 . . . . Total Hacks 287 | . 23 9 27 19 48 21 28 7 25 13 35 25 . . 7 . Successful 175 | . 12 9 14 12 39 12 9 2 25 5 22 7 . . 7 . Failed 112 | . 11 . 13 7 9 9 19 5 . 8 13 18 . . . . Catastrophic 26 | . 1 . 2 1 1 2 4 3 . 2 1 9 . . . . Database Lockouts . | . . . . . . . . . . . . . . . . . Manual 100 | . 19 . 20 10 16 12 1 3 1 9 2 7 . . . . Terminals 166 | . 23 . 22 16 16 17 28 7 . 13 4 20 . . . . Fabricators 10 | . . . . . . 3 . . . . 7 . . . . . Repair Stations 11 | . . . 4 . . . . . . . 5 2 . . . . Recycling Units 6 | . . . . 1 5 . . . . . . . . . . . Scanalyzers 16 | . . . . . . . . . . . 16 . . . . . Garrison Access 10 | . . . 1 2 . 1 . . . . 3 3 . . . . Terminal Hacks 109 | . 3 9 2 5 29 8 9 2 25 4 1 5 . . 7 . Record 69 | . . 8 1 1 27 3 . 2 25 . . . . . 2 . Prototype ID Bank 4 | . . . . . . . . . . . . . . . 4 . Open Door 9 | . . . . 2 . . 6 . . . . . . . 1 . Level Access Points 1 | . 1 . . . . . . . . . . . . . . . Branch Access Points 4 | . . . 1 . . 1 . . . 1 . 1 . . . . Emergency Access Points 1 | . . . . . . . . . . 1 . . . . . . Terminal Index 3 | . 1 . . . . 1 . . . . . 1 . . . . Unreport Threat 4 | . . . . . . . 2 . . . . 2 . . . . Locate Traps 2 | . . . . . . 1 1 . . . . . . . . . Recall Reinforcements 1 | . . . . . . 1 . . . . . . . . . . Registered Components 1 | . . . . 1 . . . . . . . . . . . . Registered Prototypes 1 | . . . . 1 . . . . . . . . . . . . Zone Layout 6 | . 1 . . . . 1 . . . 2 1 1 . . . . Proto ID Catalog 1 | . . 1 . . . . . . . . . . . . . . Release Object 2 | . . . . . 2 . . . . . . . . . . . Fabricator Hacks 5 | . . . . . . 1 . . . . 4 . . . . . Load Schematic 2 | . . . . . . . . . . . 2 . . . . . Build 3 | . . . . . . 1 . . . . 2 . . . . . Repair Station Hacks 6 | . . . 2 . . . . . . . 2 2 . . . . Scan Component 3 | . . . 1 . . . . . . . 1 1 . . . . Repair 3 | . . . 1 . . . . . . . 1 1 . . . . Recycling Unit Hacks . | . . . . . . . . . . . . . . . . . Scanalyzer 14 | . . . . . . . . . . . 14 . . . . . Insert Component 6 | . . . . . . . . . . . 6 . . . . . Analyze 8 | . . . . . . . . . . . 8 . . . . . Garrison Access Hacks 4 | . . . 1 1 . 1 . . . . 1 . . . . . Seal Access 4 | . . . 1 1 . 1 . . . . 1 . . . . . Unauthorized Hacks 37 | . 9 . 9 6 10 2 . . . 1 . . . . . . Terminals 31 | . 9 . 9 5 5 2 . . . 1 . . . . . . Botnet 17 | . 4 . 5 4 1 2 . . . 1 . . . . . . Skim 14 | . 5 . 4 1 4 . . . . . . . . . . . Fabricators . | . . . . . . . . . . . . . . . . . Repair Stations . | . . . . . . . . . . . . . . . . . Recycling Units 6 | . . . . 1 5 . . . . . . . . . . . Tunnel 6 | . . . . 1 5 . . . . . . . . . . . Scanalyzers . | . . . . . . . . . . . . . . . . . Garrison Access . | . . . . . . . . . . . . . . . . . Data Cores Recovered 1 | . . . 1 . . . . . . . . . . . . . Used . | . . . . . . . . . . . . . . . . . Hacking Detections 63 | . 8 . 6 6 5 7 11 3 . 5 5 7 . . . . Full Trace Events 7 | . . . . . . . 4 1 . . 2 . . . . . Feedback Events . | . . . . . . . . . . . . . . . . . Feedback Blocked . | . . . . . . . . . . . . . . . . . Robot Schematics Acquired . | . . . . . . . . . . . . . . . . . Robots Built . | . . . . . . . . . . . . . . . . . Authchips . | . . . . . . . . . . . . . . . . . Time . | . . . . . . . . . . . . . . . . . Total Robot Build Rating . | . . . . . . . . . . . . . . . . . Part Schematics Acquired 6 | . . . . . . . . . . . 6 . . . . . Parts Built 3 | . . . . . . 1 . . . . 2 . . . . . Authchips . | . . . . . . . . . . . . . . . . . Time 336 | . . . . . . 64 . . . . 272 . . . . . Total Part Build Rating 24 | . . . . . . 8 . . . . 16 . . . . . Parts Repaired 3 | . . . 1 . . . . . . . 1 1 . . . . Time 101 | . . . 44 . . . . . . . 25 32 . . . . Parts Recycled . | . . . . . . . . . . . . . . . . . Recycled Matter . | . . . . . . . . . . . . . . . . . Retrieved Matter . | . . . . . . . . . . . . . . . . . Retrieved Components . | . . . . . . . . . . . . . . . . . Parts Scanalyzed 6 | . . . . . . . . . . . 6 . . . . . Part Schematics Acquired 6 | . . . . . . . . . . . 6 . . . . . Parts Damaged . | . . . . . . . . . . . . . . . . . Bothacking | -11 -10 -10 -8 -8 -8 -6 -6 -6 -6 -6 -5 -4 -4 -4 -4 -3 ------------ Run | Yrd Mat Sub Mat Sto Rec Fac Ext Cet Arc Hub Fac Fac Upp Upp War Pro Used RIF Installer . | . . . . . . . . . . . . . . . . . Robots Hacked . | . . . . . . . . . . . . . . . . . Non-combat . | . . . . . . . . . . . . . . . . . Combat . | . . . . . . . . . . . . . . . . . Robot Hacks Applied . | . . . . . . . . . . . . . . . . . Relay Couplers Released 2 | . . . . 2 . . . . . . . . . . . . Machine Destruction 2 | . . . . 2 . . . . . . . . . . . . Fabnet Peak Effective % . | . . . . . . . . . . . . . . . . . Robots Rewired 45 | . . . . . 20 . 20 . . . . . . . 5 . Allies Hacked 1 | . . . . . . 1 . . . . . . . . . . Hacks Repelled . | . . . . . . . . . . . . . . . . . Allies | -11 -10 -10 -8 -8 -8 -6 -6 -6 -6 -6 -5 -4 -4 -4 -4 -3 -------- Run | Yrd Mat Sub Mat Sto Rec Fac Ext Cet Arc Hub Fac Fac Upp Upp War Pro Total Allies 57 | . . . . . 20 . 27 5 . . . . . . 5 . Largest Group 17 | . . . . . 10 10 15 17 17 12 . . . . 5 . Highest-Rated Group 967 | . . . . . 159 159 515 967 967 655 . . . . 269 . Highest-Rated Ally 159 | . . . . . 34 34 159 159 159 96 . . . . 68 . Total Orders 5 | . . . . . . 3 2 . . . . . . . . . STAY 3 | . . . . . . 2 1 . . . . . . . . . FOLLOW 1 | . . . . . . . 1 . . . . . . . . . DROP 1 | . . . . . . 1 . . . . . . . . . . Ally Attacks 294 | . . . . . 8 11 155 28 27 53 . . . . 12 . Total Damage 6230 | . . . . . 176 273 3145 762 535 871 . . . . 468 . Kills 62 | . . . . . 3 1 37 7 4 7 . . . . 3 . Allies Corrupted 5 | . . . . . . . . . . 5 . . . . . . Allies Melted 2 | . . 1 . . . . 1 . . . . . . . . . Intel | -11 -10 -10 -8 -8 -8 -6 -6 -6 -6 -6 -5 -4 -4 -4 -4 -3 ------- Run | Yrd Mat Sub Mat Sto Rec Fac Ext Cet Arc Hub Fac Fac Upp Upp War Pro Active Infowar (turns) 8450 | 11 1738 1269 541 . . 55 69 . . . 1228 605 497 683 1754 . Sensors 1833 | . . . . . . . . . . . 1228 605 . . . . Seismic 6617 | 11 1738 1269 541 . . 55 69 . . . . . 497 683 1754 . Robot Analysis Total . | . . . . . . . . . . . . . . . . . Derelict Logs Recovered 3 | . . 1 . . . . . . . . . . 2 . . . Drone Launches . | . . . . . . . . . . . . . . . . . Drone Recoveries . | . . . . . . . . . . . . . . . . . Exploration | -11 -10 -10 -8 -8 -8 -6 -6 -6 -6 -6 -5 -4 -4 -4 -4 -3 ------------- Run | Yrd Mat Sub Mat Sto Rec Fac Ext Cet Arc Hub Fac Fac Upp Upp War Pro Turns Passed 21781 | 46 1738 1285 1267 1016 2227 1952 1661 775 571 491 3213 2150 685 683 1946 75 Spaces Moved 8756 | 15 552 713 695 349 729 829 858 320 291 233 1008 695 334 283 703 149 Core 180 | . . . . . . . . . . . 1 . . . 30 149 Treads 4093 | 15 552 76 12 349 729 481 . 291 291 233 692 349 . . 23 . Legs 1928 | . . . . . . . . . . . 315 346 334 283 650 . Wheels 2555 | . . 637 683 . . 348 858 29 . . . . . . . . Hover . | . . . . . . . . . . . . . . . . . Flight . | . . . . . . . . . . . . . . . . . Fastest Speed 50 | 160 160 135 122 238 238 130 130 130 160 160 120 187 185 185 50 50 Average Speed 202 | 160 283 156 134 238 240 201 130 207 160 161 252 220 191 235 246 50 Slowest Speed 950 | 160 320 320 317 238 241 330 130 240 160 240 950 560 265 265 349 50 Overloaded Moves . | . . . . . . . . . . . . . . . . . Propulsion Burnouts . | . . . . . . . . . . . . . . . . . Robots Hopped . | . . . . . . . . . . . . . . . . . Potential Cave-ins . | . . . . . . . . . . . . . . . . . Cave-ins Triggered . | . . . . . . . . . . . . . . . . . Exploration Rate (%) 55 | 2 98 48 52 68 99 21 83 76 98 34 27 20 52 55 93 23 Regions Visited 16 Branch Regions 11 Pre-discovered Areas 6 | . . . . 1 5 . . . . . . . . . . . Known Exits Taken 7 | . 1 1 1 . . 1 . . . . 1 1 1 . . . Unknown Exits Taken 9 | 1 . . . 1 1 . 1 1 1 1 . . . 1 1 . Scrap Searched 2 | . . . . . . . . . . . . . . 2 . . Spaces Dug 76 | . . . . . 1 19 21 . . . 5 29 1 . . . Terrain Destroyed 952 | . . . 5 2 5 65 28 . 38 319 74 93 91 84 148 . Melee 15 | . . . . . 1 4 . . . . . 9 1 . . . Projectile 180 | . . . 5 1 4 7 6 . 38 18 21 60 1 2 17 . AOE 753 | . . . . . . 54 21 . . 301 51 24 89 82 131 . Terrain Rammed . | . . . . . . . . . . . . . . . . . Walls Destroyed . | . . . . . . . . . . . . . . . . . Machines Disabled . | . . . . . . . . . . . . . . . . . Actions | -11 -10 -10 -8 -8 -8 -6 -6 -6 -6 -6 -5 -4 -4 -4 -4 -3 --------- Run | Yrd Mat Sub Mat Sto Rec Fac Ext Cet Arc Hub Fac Fac Upp Upp War Pro Total 11406 | 30 633 820 909 438 1149 1016 1283 411 335 279 1391 1018 356 292 897 149 Wait 593 | . 26 39 57 29 2 47 137 60 10 . 116 70 . . . . Move 8740 | 14 551 712 694 348 728 828 857 319 290 232 1007 694 333 282 702 149 Hop . | . . . . . . . . . . . . . . . . . Pick Up 194 | . 8 20 30 6 4 22 7 2 3 1 39 38 . 2 12 . Fast Attach 59 | 1 . . 11 3 . 5 3 4 . . 15 13 . . 4 . Attach 93 | 3 . 7 7 . . 7 . . . 5 17 26 3 . 18 . Detach 19 | 2 . . 2 . . 1 2 . . . 5 1 . . 6 . Swap 159 | . 1 10 16 1 9 19 16 6 . 4 36 22 9 2 8 . Drop 153 | 5 1 . 38 8 5 24 12 9 3 1 14 15 . . 18 . Fire 678 | 5 46 29 53 38 22 58 60 11 29 31 133 128 10 6 19 . Melee 24 | . . 3 . . 1 4 6 . . . . 9 1 . . . Ram 1 | . . . 1 . . . . . . . . . . . . . Kick 1 | . . . . . . . . . . . 1 . . . . . Crush 21 | . . . . 5 . 1 . . . 5 8 2 . . . . Escape Stasis 26 | . . . . . . . 26 . . . . . . . . . Rewire 644 | . . . . . 378 . 156 . . . . . . . 110 . Trap . | . . . . . . . . . . . . . . . . . Miscellaneous 1 | . . . . . . . 1 . . . . . . . . . Route ------- -11/Scrapyard -10/Materials (discovered 5 exits: *Mat x3 / [*Min] / *Sub) -10/Subcaves (discovered 2 exits: *Mat x2) -8/Materials (discovered 4 exits: *Fac x2 / *Sto x2) -8/Storage -8/Recycling -6/Factory (discovered 5 exits: *Fac / Low x2 / *Ext x2) -6/Extension (discovered 2 exits: *Fac / *Cet) -6/Cetus (discovered 3 exits: *Fac x2 / *Arc) -6/Archives (discovered 3 exits: *Fac / *Hub x2) -6/Hub_04(d) (discovered 2 exits: *Fac x2) -5/Factory -4/Factory (discovered 3 exits: *Upp x2 / Arm) -4/Upper Caves -4/Upper Caves (discovered 2 exits: [*Res] / *War) -4/Warlord -3/Proximity Caves History --------- Turn | Location | Event 23 | -11/Scrapyard | Discovered new exit (range 3) 47 | -11/Scrapyard | Entered Materials 124 | -10/Materials | Discovered new exit (range 9) 244 | -10/Materials | Discovered new exit (range 10) 305 | -10/Materials | Build established: Mutant 634 | -10/Materials | Identified exit to Materials 975 | -10/Materials | Identified exit to Subcaves 975 | -10/Materials | Learned location of 1 exit from Materials 1063 | -10/Materials | Learned 4 Subcaves zone layouts 1092 | -10/Materials | Learned location of 2 exits from Subcaves 1139 | -10/Materials | Learned location of 2 exits from Mines 1179 | -10/Materials | Learned location of 2 exits from Mines 1785 | -10/Materials | Entered Subcaves 1786 | -10/Subcaves | Identified exit to Materials 2360 | -10/Subcaves | Shifting Twisted Machinery released Mak. Hammer 2417 | -10/Subcaves | Shifting Twisted Machinery released Sub. Machine Gun 2418 | -10/Subcaves | A swath of the cavern ceiling suddenly collapsed 2433 | -10/Subcaves | Core integrity fell below 50% 2495 | -10/Subcaves | Lost 4 parts (1p1n2w) 2738 | -10/Subcaves | Learned location of 1 exit from Materials 2800 | -10/Subcaves | Core integrity fell below 20% 2962 | -10/Subcaves | Visited 4L-MR0's lab 2976 | -10/Subcaves | Found Gun Armor 3070 | -10/Subcaves | Entered Materials 3070 | -8/Materials | Evolved 4 slots: Propulsion x1, Utility x3 3071 | -8/Materials | Identified exit to Factory 3072 | -8/Materials | Attached Gun Armor, gained temporary slots: Weapon x2 3470 | -8/Materials | Build established: Gunner 3562 | -8/Materials | Garrison activated, responded to threat 3607 | -8/Materials | Destroyed 7 combat bots 3987 | -8/Materials | Identified exit to Storage 4063 | -8/Materials | Repaired Arm. Huge Wheel 4337 | -8/Materials | Entered Storage 4773 | -8/Storage | Used back door to open Recycling access 4773 | -8/Storage | Discovered new exit (range 5) 5353 | -8/Storage | Entered Recycling 6002 | -8/Recycling | Build established: Commander-Gunner 6370 | -8/Recycling | Discovered new exit (range 16) 6801 | -8/Recycling | Lost 10 allies 7109 | -8/Recycling | Entered Scraplab 7580 | -8/Recycling | Entered Factory 7580 | -6/Factory | Accompanied by 10 allies 7580 | -6/Factory | Evolved 4 slots: Power x1, Propulsion x1, Utility x1, Weapon x1 7675 | -6/Factory | Discovered new exit (range 5) 7707 | -6/Factory | Fabricated Adv. Powered Armor? 7807 | -6/Factory | Identified exit to Lower Caves 7807 | -6/Factory | Identified exit to Extension 8134 | -6/Factory | Garrison activated, responded to threat 8585 | -6/Factory | Build established: Hacker-Gunner 9532 | -6/Factory | Entered Extension 9639 | -6/Extension | Rescued a captive Derelict 9691 | -6/Extension | Rescued a captive Derelict 9982 | -6/Extension | Rescued a captive Derelict 10442 | -6/Extension | Build established: Commander-Tank 10463 | -6/Extension | Spotted B-75 Beast 10484 | -6/Extension | Allies destroyed B-75 Beast 10497 | -6/Extension | Spotted B-75 Beast 10499 | -6/Extension | Destroyed B-75 Beast 10507 | -6/Extension | Disrupted transfer network 10527 | -6/Extension | Lost 4 allies 10594 | -6/Extension | Rescued a captive Derelict 10596 | -6/Extension | Rescued a captive Derelict 10623 | -6/Extension | Rescued a captive Derelict 10784 | -6/Extension | Build established: Commander-Gunner 10802 | -6/Extension | Lost 5 allies 10846 | -6/Extension | Rescued A7 11109 | -6/Extension | Discovered new exit (range 10) 11110 | -6/Extension | Discovered new exit (range 6) 11193 | -6/Extension | Entered Cetus 11193 | -6/Cetus | Accompanied by 12 allies (A7) 11198 | -6/Cetus | Acquired a Cetus Manufacturing Module code from A7 11211 | -6/Cetus | Spotted Cetus Guard 11212 | -6/Cetus | Spotted Cetus Guard 11215 | -6/Cetus | Destroyed Cetus Guard 11215 | -6/Cetus | Spotted Cetus Guard 11216 | -6/Cetus | Spotted Cetus Guard 11220 | -6/Cetus | Allies destroyed Cetus Guard 11222 | -6/Cetus | Destroyed Cetus Guard 11228 | -6/Cetus | Allies destroyed Cetus Guard 11338 | -6/Cetus | Discovered new exit (range 16) 11588 | -6/Cetus | Started Cetus Manufacturing Module 11613 | -6/Cetus | Manufactured an Enhanced Grunt 11633 | -6/Cetus | Discovered new exit (range 16) 11638 | -6/Cetus | Manufactured an Enhanced Grunt 11663 | -6/Cetus | Manufactured an Enhanced Grunt 11688 | -6/Cetus | Manufactured an Enhanced Grunt 11703 | -6/Cetus | Spotted Cetus Guard 11703 | -6/Cetus | Spotted Cetus Guard 11705 | -6/Cetus | Destroyed Cetus Guard 11706 | -6/Cetus | Spotted Cetus Guard 11708 | -6/Cetus | Spotted Cetus Guard 11709 | -6/Cetus | Destroyed Cetus Guard 11710 | -6/Cetus | Allies destroyed Cetus Guard 11713 | -6/Cetus | Manufactured an Enhanced Grunt 11717 | -6/Cetus | Allies destroyed Cetus Guard 11733 | -6/Cetus | Discovered new exit (range 15) 11745 | -6/Cetus | Met Revision 17 11943 | -6/Cetus | Security sweep announced 11968 | -6/Cetus | Entered Archives 11968 | -6/Archives | Accompanied by 17 allies (A7) 12035 | -6/Archives | Unable to access archive contents 12036 | -6/Archives | Discovered new exit (range 16) 12044 | -6/Archives | Lost 4 allies 12052 | -6/Archives | Unable to access archive contents 12055 | -6/Archives | Discovered new exit (range 15) 12068 | -6/Archives | Unable to access archive contents 12233 | -6/Archives | Discovered new exit (range 13) 12539 | -6/Archives | Entered Hub_04(d) 12539 | -6/Hub_04(d) | Accompanied by 12 allies 12559 | -6/Hub_04(d) | Spotted B-75 Beast 12574 | -6/Hub_04(d) | Allies destroyed B-75 Beast 12725 | -6/Hub_04(d) | Discovered new exit (range 11) 12759 | -6/Hub_04(d) | Lost 3 allies 12760 | -6/Hub_04(d) | Network Hub disabled 12768 | -6/Hub_04(d) | Network Hub disabled 12881 | -6/Hub_04(d) | Spotted Lightning 12882 | -6/Hub_04(d) | Spotted Lightning 12889 | -6/Hub_04(d) | First assault squad dispatched 12898 | -6/Hub_04(d) | Lost 5 allies 12908 | -6/Hub_04(d) | Spotted Lightning 12915 | -6/Hub_04(d) | Build established: Scavenger-Gunner 12932 | -6/Hub_04(d) | System corruption reached 10% 12947 | -6/Hub_04(d) | Destroyed Lightning 12971 | -6/Hub_04(d) | Lost 4 parts (1p3w) 13004 | -6/Hub_04(d) | Discovered new exit (range 14) 13005 | -6/Hub_04(d) | Spotted Lightning 13006 | -6/Hub_04(d) | Spotted Lightning 13030 | -6/Hub_04(d) | Entered Factory 13030 | -5/Factory | Evolved 2 slots: Utility x1, Weapon x1 13055 | -5/Factory | Lost 3 parts (1p1n1u) 13417 | -5/Factory | Fabricated Centrium Medium Armor Plating (x1) 13569 | -5/Factory | Build established: Scavenger-Tank 14247 | -5/Factory | Fabricated Centrium Medium Armor Plating? 14347 | -5/Factory | Lost 12 parts (1p2n1u8w) 14612 | -5/Factory | Build established: Scavenger-Gunner 15058 | -5/Factory | System corruption reached 10% 15417 | -5/Factory | Discovered new exit (range 16) 15703 | -5/Factory | Build established: Scavenger-Skirmisher 15785 | -5/Factory | Repaired Hyp. Gauss Rifle 15798 | -5/Factory | Identified exit to Factory 16030 | -5/Factory | First assault squad dispatched 16040 | -5/Factory | Garrison activated, responded to threat 16243 | -5/Factory | Entered another Factory area 16243 | -4/Factory | Evolved 2 slots: Utility x2 16275 | -4/Factory | Found Quantum Capacitor 16893 | -4/Factory | Repaired Imp. Treads 16945 | -4/Factory | Garrison activated, responded to threat 16988 | -4/Factory | Cargo convoy interrupted 17020 | -4/Factory | Lost 7 parts (1p2n2u2w) 17129 | -4/Factory | Lost 3 parts (1p2w) 17432 | -4/Factory | Lost 7 parts (1p2n2u2w) 17457 | -4/Factory | Build established: Scavenger-Gunner 17585 | -4/Factory | Destroyed 9 combat bots 17589 | -4/Factory | Lost 7 parts (1p3n1u2w) 17743 | -4/Factory | First assault squad dispatched 17791 | -4/Factory | Identified exit to Upper Caves 17791 | -4/Factory | Identified exit to Armory 18137 | -4/Factory | Lost 5 parts (1p1u3w) 18393 | -4/Factory | Entered Upper Caves 18671 | -4/Upper Caves | Identified exit to Upper Caves 18730 | -4/Upper Caves | Encountered a Warlord checkpoint 18780 | -4/Upper Caves | Learned 8 Research zone layouts 19078 | -4/Upper Caves | Entered another Upper Caves area 19113 | -4/Upper Caves | Discovered new exit (range 8) 19735 | -4/Upper Caves | Discovered new exit (range 15) 19761 | -4/Upper Caves | Entered Warlord 19827 | -4/Warlord | System corruption cleaned by Quarantine Array 20447 | -4/Warlord | Found Prototype Special Weapon 20447 | -4/Warlord | Identified RU-N14's Throwing Claymores v3 20740 | -4/Warlord | Met Warlord 20765 | -4/Warlord | Warlord's base attacked by MAIN.C 21115 | -4/Warlord | Warlord forces counterattacked 21216 | -4/Warlord | Found Prototype Energy Gun 21219 | -4/Warlord | Found Prototype Energy Gun 21226 | -4/Warlord | Found Prototype Energy Cannon 21230 | -4/Warlord | Found Prototype Energy Gun 21243 | -4/Warlord | Found Prototype Launcher 21263 | -4/Warlord | Found Prototype Energy Cannon 21263 | -4/Warlord | Identified Vortex Driver (x2) 21440 | -4/Warlord | Warlord base infiltrated, sounded retreat 21474 | -4/Warlord | Lost 6 allies 21523 | -4/Warlord | Identified Vortex Rifle (x3) 21525 | -4/Warlord | Identified Vortex Catalyst Activator 21589 | -4/Warlord | Spotted B-90 Cyclops 21592 | -4/Warlord | Spotted B-86 Titan 21595 | -4/Warlord | Destroyed B-90 Cyclops 21598 | -4/Warlord | Spotted Striker 21607 | -4/Warlord | Core integrity fell below 50% 21632 | -4/Warlord | Destroyed B-86 Titan 21635 | -4/Warlord | Destroyed Striker 21661 | -4/Warlord | Lost 11 parts (3n2u6w) 21665 | -4/Warlord | Spotted Striker 21665 | -4/Warlord | Spotted Executioner 21665 | -4/Warlord | Spotted Striker 21693 | -4/Warlord | Released all parts (8) 21704 | -4/Warlord | Core integrity fell below 20% 21704 | -4/Warlord | Discovered new exit (range 8) 21707 | -4/Warlord | Entered Proximity Caves 21720 | -3/Proximity Caves | Lost 7 parts (2p3u2w) 21782 | -3/Proximity Caves | Destroyed by H-77 Assassin with Coil Gun Last Messages --------------- 21696_ Striker knocked back. 21698_ System corrupted: Substantial component data lost. 21700_ Slug penetrates Earth. 21700_ Slug penetrates 7O-F28(Y). 21700_ Slug penetrates Earth. 21703_ The unstable cave ceiling collapses. 21704_ EXIT=FOUND 21706_ Striker knocked back. LOCATION=UNKNOWN GOAL=ESCAPE 21739_ System corrupted: Component data lost. 21767_ System corrupted: Heat flow error (+237). 21777_ Penetrated by Slug. 21777_ Slug penetrates Wall. 21779_ Penetrated by Slug. 21779_ Slug penetrates Wall. 21779_ Penetrated by Slug. 21779_ Slug penetrates Wall. 21780_ Penetrated by Slug. Map ----- +----------------------------------------------------+ | ?????????????????????????????????????????????????? | | ?????????????????????????????????????????????????? | | ?????????????????????????????????????????????????? | | ?????????????????????????????????????????????????? | | ?????????????????????????????????????????????????? | | ?????????????????????????????????????????????????? | | ?????????????????????????????????????????????????? | | ?????????????????????????????????????????????????? | | ?????????????????????????????????????????????????? | | ?????????????????????????????????????????????????? | | ?????????????????????????????????????????????????? | | ?????????????????????????????????????????????????? | | ?????????????????????????????????????????????????? | | ?????????????????????????????????????????????????? | | ?????????????????????????????????????????????????? | | ?????????????????????????????????????????????????? | | ?????????????????????????????????????????????????? | | ?????????????????????????????????????????????????? | | ????????????????????#????????????????????????????? | | ????????????????????# ???????????????????????????? | | ????????????????????# ???????????????????????????? | | ????????????????????# ??????????????????????????? | | ???????????????????## ??????????????????????????? | | ???????????????????# ?????????????????????????? | | ??????????????????## #####????????????????????? | | ??????????????##### @ ##???????????????????? | | ????????????# ##??????????????????? | | ???????????# p ## #??????????????????? | | ??????????? ## #??## ##??????????????????? | | ??????????#? ??# #######h #???????????????????? | | ??????????# ??# ### #???????????????????? | | ?????????## ### #### ###h #???????????????????? | | ?????????# ## #??# ## ##???????????????????? | | ??????????# ##?# ##????????????????????? | | ?????????#### #### ##?????????????????????? | | # ??####?????# ## ####????????????????????? | | # ## #????# ## #### #????????????????????? | | # ???## ##### ### #????????????????????? | | ? #?## #### #?????????????????????? | | "???# ## #?????????????????????? | | ## #?????????????????????? | | ##### ## ##?????????????????????? | | ##???# #?###??????????????????????? | | ##??### ###?###????????????????????? | | ## #### ##???# ### #????????????????????? | | ?## ?????# #????# #????????????????????? | | ?????????# #????# ### #????????????????????? | | ?????????# #????# #?# #????????????????????? | | ??????#### #????# #???????????????????? | | ??????# #????# #???????????????????? | +----------------------------------------------------+ Best States ------------- Heat Dissipation 93 Energy Generation 38 Energy Capacity 540 Matter Stores 315 Matter Capacity 400 Sight Range 16 Robot Scan Range 16 Terrain Scan Density 10 Base Temperature (-) 200 Armor Coverage 760 Resistance: KI 30 Weapon Shielding 66 Weapon Cycling 20 Evasion (%) 50 Targeting Accuracy 16 Target Analysis 6 Armor Integrity Analysis 30 Recoil Reduction 4 Matter Filtering 30 Kinecelleration 40 Salvage Targeting 3 Offensive Hacking 30 Defensive Hacking 12 Item Schematics ----------------- Centrium Medium Armor Plating | -5/Factory | Scanalyzed Hyp. Gauss Rifle | -5/Factory | Scanalyzed Adv. Targeting Computer | -5/Factory | Scanalyzed Kinecellerator | -5/Factory | Scanalyzed Adv. Heat Sink | -5/Factory | Scanalyzed Hvy. Armor Plating | -5/Factory | Scanalyzed Robot Schematics ------------------ None Fabricated ------------ Adv. Powered Armor | x1 | -6/Factory | Preloaded Centrium Medium Armor Plating | x1 | -5/Factory Centrium Medium Armor Plating | x1 | -5/Factory Repaired ---------- Arm. Huge Wheel | 62% | -8/Materials Hyp. Gauss Rifle | 15% | -5/Factory Imp. Treads | 8% | -4/Factory Alien Tech Used ----------------- None Achievements -------------- None Challenges ------------ None Game ------ Seed PhasingThermalCutter Manual? 0 Play Time 03:29:32 Cumulative 16.7 hours Start 2025.08.04 @ 00:45:57 End 2025.08.04 @ 04:34:34 Sessions 1 Manual Loads 0 Difficulty Rogue Special Mode None Game No. 8 Rogue 8 Adventurer 0 Explorer 0 Win Type - Total 0 Types 0/0/0/0/0/0/0/0/0/0 Lore% 26 Gallery% 20 Achievement% 72 Wizard Run 0 Options --------- Layout 2 ASCII 0 Keyboard 1 Movement Vi Keybinds 0 Fullscreen 1 Font 28/SwanstonBold Map View 50x52 Zoom Use 0% Tactical HUD 1 Map Filters NONE Filters NONE Steam 1 RUN: ef61e0ba-e0a5-4905-a665-71c8f630f433